Cogmind - Beta 13 @@@ ROGUE MODE // 2024.04.07 @ 16:09:10 Player: JackZewap Result: Destroyed by YN-L1H(R) with Subdweller Laser Performance ------------- Evolutions (0) 0 Regions Visited (2) 400 Robots Destroyed (12) 60 Value Destroyed (299) 299 Prototype IDs (0) 0 Alien Tech Used (0) 0 Bonus (0) 0 TOTAL SCORE: 759 Bonus ------- None Cogmind --------- Core Integrity 0/250 Matter 104/300 Energy 100/100 System Corruption 0% Temperature Cool (6) Movement Rolling (80) Location -10/Subcaves Parts ------- > --- POWER (1) -------- (None) > --- PROPULSION (2) --- Wheel > --- UTILITY (2) ------ Hacking Suite > --- WEAPON (2) ------- Subdweller Shrapnel Launcher > --- INVENTORY (5) ---- Makeshift Power Source Light Treads Sensor Array Signal Interpreter Rocket Launcher Peak State ------------ > --- POWER ------------ Ion Engine > --- PROPULSION ------- Light Treads Wheel > --- UTILITY ---------- Improved Heat Sink Hacking Suite > --- WEAPON ----------- Heavy Assault Rifle Heavy Assault Rifle > --- INVENTORY -------- Sensor Array Signal Interpreter Rocket Launcher Rocket Launcher [Rating: 13] Favorites ----------- Power Ion Engine Engine Ion Engine Propulsion Light Treads Treads Light Treads Wheel Wheel Utility Hacking Suite Device Improved Heat Sink Storage Small Storage Unit Hackware Hacking Suite Weapon Heavy Assault Rifle Energy Gun Particle Gun Ballistic Gun Heavy Assault Rifle Launcher Subdweller Shrapnel Launcher Build | -11 -10 -10 ------- Run | Yrd Mat Sub Slots Evolved . | . . . Power . | . . . Propulsion . | . . . Utility . | . . . Weapon . | . . . Parts Attached 21 | 5 12 4 Power 2 | 1 1 . Engine 2 | 1 1 . Core . | . . . Reactor . | . . . Propulsion 4 | 1 1 2 Treads 2 | 1 1 . Leg . | . . . Wheel 2 | . . 2 Hover . | . . . Flight . | . . . Utility 5 | 1 3 1 Device 3 | . 2 1 Storage 1 | 1 . . Processor . | . . . Hackware 1 | . 1 . Protection . | . . . Artifact . | . . . Weapon 10 | 2 7 1 Energy Gun 1 | . 1 . Energy Cannon . | . . . Ballistic Gun 7 | 2 5 . Ballistic Cannon . | . . . Launcher 2 | . 1 1 Special Weapon . | . . . Impact Weapon . | . . . Slashing Weapon . | . . . Piercing Weapon . | . . . Special Melee Weapon . | . . . Unidentified Prototypes . | . . . Parts Lost 5 | . 1 4 Power 1 | . . 1 Propulsion 1 | . . 1 Utility 1 | . . 1 Weapon 2 | . 1 1 Highest Loss Streak 4 | . 1 4 To Critical Strikes . | . . . Average Slot Usage (%) 87 | . 83 95 Engine 14 | . 14 14 Treads 10 | . 14 2 Wheel 7 | . . 23 Device 8 | . 5 12 Storage 5 | . 8 . Hackware 13 | . 12 14 Energy Gun 2 | . 3 . Ballistic Gun 23 | . 23 23 Launcher 1 | . . 4 Naked Turns . | . . . Heaviest Build 17 | 11 12 17 Greatest Support 20 | 20 20 20 Greatest Overweight (x) 1 | . . 1 Average Overweight (x) . | . . . Largest Inventory Capacity 8 | 8 8 5 Average Capacity 6 | 7 6 5 Most Carried 5 | . 5 5 Average Carried 3 | . 2 4 Final Capacity 8 | 8 5 5 Final Carried 5 | . 4 5 Class Distribution -------------------- 59% | Mutant 40% | Scavenger-Mutant Dominant Class ---------------- Mutant | -10/Materials Scavenger-Mutant | -10/Subcaves Resources | -11 -10 -10 ----------- Run | Yrd Mat Sub Matter Collected 434 | 204 157 73 Remotely . | . . . Salvage Created 319 | . 208 111 Parts 30 | . 21 9 Haulers Intercepted 1 | . 1 . Recyclers Shooed . | . . . Parts Field Recycled . | . . . Retrieved Matter . | . . . Parts Self-Destructed . | . . . Prevented . | . . . Kills | -11 -10 -10 ------- Run | Yrd Mat Sub Combat Hostiles Destroyed 9 | . 6 3 Guns 4 | . 3 1 AOE 5 | . 3 2 Classes Destroyed 7 | . 5 2 Hauler 1 | . 1 . Operator 1 | . 1 . Watcher 1 | . 1 . Swarmer 3 | . 3 . Grunt 3 | . 3 . Artisan 1 | . . 1 Subdweller 3 | . . 3 Best Kill Streak 6 | . 6 2 Combat Bots Only 6 | . 6 2 Max Kills in Single Turn 3 | . 3 2 Gunslinging . | . . . Exploded 3 | . 3 2 Melee . | . . . Uniques/NPCs Destroyed . | . . . Combat | -11 -10 -10 -------- Run | Yrd Mat Sub Hostile Shots Fired 63 | . 37 26 Missed 18 | . 9 9 Damage Taken 891 | . 291 600 Core 257 | . 18 239 Absorbed by Shields . | . . . Core Remaining (%) 100 | 100 . . Volleys Fired 39 | . 27 12 Largest 2 | . 2 2 Hottest 85 | . 85 63 Shots Fired 69 | . 49 20 Gun 62 | . 47 15 Cannon . | . . . Launcher 7 | . 2 5 Special . | . . . Kinetic 64 | . 44 20 Thermal 3 | . 3 . Explosive 2 | . 2 . Electromagnetic . | . . . Robot Hit Streak 12 | . 12 11 Robot Miss Streak 2 | . 2 2 Penetration Max . | . . . Secondary Targets . | . . . Shots Hit Robots 49 | . 34 15 Core Hits 25 | . 17 8 Critical Kills . | . . . Critical Parts Destroyed . | . . . Critical Strikes 1 | . 1 . Burn 1 | . 1 . Melee Attacks . | . . . Impact . | . . . Slashing . | . . . Piercing . | . . . Sneak Attacks . | . . . Combat Hostiles . | . . . Follow-up Attacks . | . . . Damage Inflicted 1151 | . 590 561 Guns 518 | . 339 179 Cannons . | . . . Explosions 633 | . 251 382 Melee . | . . . Ramming . | . . . Kinetic 865 | . 304 561 Thermal 35 | . 35 . Explosive 251 | . 251 . Electromagnetic . | . . . Impact . | . . . Slashing . | . . . Piercing . | . . . Highest Corruption . | . . . Average Corruption . | . . . Corruption Purged . | . . . Corruption Blocked . | . . . Overload Shots . | . . . Overflow Damage 88 | . 30 58 Projectiles . | . . . Explosions 88 | . 30 58 Melee . | . . . Knockbacks . | . . . Impact . | . . . Kinetic . | . . . Secondary . | . . . Self-Inflicted Damage 197 | . 11 186 Shots 5 | . 1 4 Rammed . | . . . Targets Rammed . | . . . Kicked . | . . . Crushed . | . . . Highest Temperature 284 | . 32 284 Average Temperature 70 | . 11 164 Received Heat Transfer 495 | . 93 402 Siege Activations . | . . . Robots Corrupted . | . . . Combat Hostiles . | . . . Parts Fried . | . . . Impact Corruptions . | . . . Robots Melted . | . . . Combat Hostiles . | . . . Parts Melted 1 | . . 1 Heat Transferred 148 | . 148 . Parts Sabotaged . | . . . Parts Stolen . | . . . Parts Stripped . | . . . Power Chain Reactions . | . . . Alert | -11 -10 -10 ------- Run | Yrd Mat Sub Peak Influence 173 | . 173 . Initial . | . . . Average 45 | . 48 . Maximum Alert Level . | . . . Low Security (%) 100 | 100 100 . Level 1 . | . . . Level 2 . | . . . Level 3 . | . . . Level 4 . | . . . Level 5 . | . . . High Security . | . . . Max Security . | . . . Squads Dispatched . | . . . Investigation . | . . . Extermination . | . . . Reinforcement . | . . . Assault . | . . . Garrison . | . . . Intercept . | . . . Searches Triggered . | . . . Construction Impeded . | . . . Haulers Reinforced . | . . . Active Scanning Responses . | . . . Cargo Convoy Interrupts . | . . . Stealth | -11 -10 -10 --------- Run | Yrd Mat Sub Distress Signals 1 | . 1 . Communications Jammed . | . . . Distress Signals . | . . . Times Spotted 24 | . 14 10 Peak Tracking Total 7 | . 7 5 Tactical Retreats 2 | . . 2 Traps | -11 -10 -10 ------- Run | Yrd Mat Sub Traps Triggered 1 | . 1 . Indirectly . | . . . Trap Hack Attempts . | . . . Triggered . | . . . Disarmed . | . . . Reprogrammed . | . . . Reused . | . . . Traps Extracted . | . . . Installed . | . . . Triggered . | . . . Machines | -11 -10 -10 ---------- Run | Yrd Mat Sub Machines Disabled . | . . . Max in Single Turn . | . . . Machines Repaired . | . . . Machines Dismantled . | . . . Machines Sabotaged . | . . . Overloaded Fab Kills . | . . . Hacking | -11 -10 -10 --------- Run | Yrd Mat Sub Machines Accessed 4 | . 4 . Terminals 4 | . 4 . Fabricators . | . . . Repair Stations . | . . . Recycling Units . | . . . Scanalyzers . | . . . Garrison Access . | . . . Total Hacks 13 | . 13 . Successful 8 | . 8 . Failed 5 | . 5 . Catastrophic 1 | . 1 . Database Lockouts . | . . . Manual 10 | . 10 . Terminals 13 | . 13 . Fabricators . | . . . Repair Stations . | . . . Recycling Units . | . . . Scanalyzers . | . . . Garrison Access . | . . . Terminal Hacks 4 | . 4 . Locate Traps 3 | . 3 . Registered Prototypes 1 | . 1 . Fabricator Hacks . | . . . Repair Station Hacks . | . . . Recycling Unit Hacks . | . . . Scanalyzer . | . . . Garrison Access Hacks . | . . . Unauthorized Hacks 4 | . 4 . Terminals 4 | . 4 . Botnet 4 | . 4 . Fabricators . | . . . Repair Stations . | . . . Recycling Units . | . . . Scanalyzers . | . . . Garrison Access . | . . . Data Cores Recovered 1 | . 1 . Used . | . . . Hacking Detections 3 | . 3 . Full Trace Events 2 | . 2 . Feedback Events . | . . . Feedback Blocked . | . . . Robot Schematics Acquired . | . . . Robots Built . | . . . Authchips . | . . . Time . | . . . Total Robot Build Rating . | . . . Part Schematics Acquired . | . . . Parts Built . | . . . Authchips . | . . . Time . | . . . Total Part Build Rating . | . . . Parts Repaired . | . . . Time . | . . . Parts Recycled . | . . . Recycled Matter . | . . . Retrieved Matter . | . . . Retrieved Components . | . . . Parts Scanalyzed . | . . . Part Schematics Acquired . | . . . Parts Damaged . | . . . Bothacking | -11 -10 -10 ------------ Run | Yrd Mat Sub Used RIF Installer . | . . . Robots Hacked . | . . . Non-combat . | . . . Combat . | . . . Robot Hacks Applied . | . . . Relay Couplers Released . | . . . Fabnet Peak Effective % . | . . . Robots Rewired . | . . . Allies Hacked . | . . . Hacks Repelled . | . . . Allies | -11 -10 -10 -------- Run | Yrd Mat Sub Total Allies . | . . . Largest Group . | . . . Highest-Rated Group . | . . . Highest-Rated Ally . | . . . Total Orders . | . . . Ally Attacks . | . . . Total Damage . | . . . Kills . | . . . Allies Corrupted . | . . . Allies Melted . | . . . Intel | -11 -10 -10 ------- Run | Yrd Mat Sub Robot Analysis Total . | . . . Derelict Logs Recovered 1 | . . 1 Drone Launches . | . . . Drone Recoveries . | . . . Exploration | -11 -10 -10 ------------- Run | Yrd Mat Sub Turns Passed 1191 | 62 760 369 Spaces Moved 797 | 39 401 357 Core 6 | 6 . . Treads 469 | 33 401 35 Legs . | . . . Wheels 322 | . . 322 Hover . | . . . Flight . | . . . Fastest Speed 50 | 50 160 80 Average Speed 126 | 143 160 87 Slowest Speed 160 | 160 160 160 Overloaded Moves . | . . . Propulsion Burnouts . | . . . Robots Hopped . | . . . Cave-ins Triggered . | . . . Exploration Rate (%) 29 | 3 53 32 Regions Visited 2 Branch Regions 1 Pre-discovered Areas 1 | . . 1 Known Exits Taken . | . . . Unknown Exits Taken 2 | 1 1 . Scrap Searched 1 | . . 1 Spaces Dug . | . . . Terrain Destroyed 96 | . 16 80 Melee . | . . . Projectile . | . . . AOE 96 | . 16 80 Terrain Rammed . | . . . Walls Destroyed . | . . . Machines Disabled . | . . . Actions | -11 -10 -10 --------- Run | Yrd Mat Sub Total 910 | 43 475 392 Wait 35 | . 22 13 Move 795 | 38 400 357 Hop . | . . . Pick Up 7 | . 6 1 Fast Attach 16 | 5 7 4 Attach 3 | . 3 . Detach 3 | . 2 1 Swap 2 | . 2 . Drop 9 | . 6 3 Fire 39 | . 27 12 Melee . | . . . Ram . | . . . Kick . | . . . Crush . | . . . Escape Stasis . | . . . Rewire 1 | . . 1 Trap . | . . . Miscellaneous . | . . . Route ------- -11/Scrapyard -10/Materials (discovered 2 exits: [*Mat] / [*Sub]) -10/Subcaves History --------- Turn | Location | Event 3 | -11/Scrapyard | Discovered new exit (range 15) 63 | -11/Scrapyard | Entered Materials 306 | -10/Materials | Build established: Mutant 374 | -10/Materials | Discovered new exit (range 15) 453 | -10/Materials | Discovered new exit (range 8) 823 | -10/Materials | Entered Subcaves 1081 | -10/Subcaves | Shifting Twisted Machinery released Sub. Shrapnel Launcher 1089 | -10/Subcaves | Shifting Twisted Machinery released Sub. Monowheel 1181 | -10/Subcaves | Ambushed by Subdweller buried in earth 1182 | -10/Subcaves | Core integrity fell below 50% 1188 | -10/Subcaves | Core integrity fell below 20% 1192 | -10/Subcaves | Destroyed by YN-L1H(R) with Subdweller Laser Last Messages --------------- 01088_ Dropped Hvy. Assault Rifle. Sub. Monowheel falls loose from the Twisted Machinery. 01089_ Acquired Sub. Shrapnel Launcher. 01134_ Searching scrap... 01134_ Found Mak. Power Source. 01134_ Found 11 Matter. 01135_ Acquired 11 matter. 01138_ Dropped Rocket Launcher. 01139_ Acquired Mak. Power Source. 01182_ HN-YGU(R): "ARGHSUB!" 01187_ Hvy. Assault Rifle destroyed. 01187_ 20-TDR(R) destroyed. 01187_ Sub. Power Source melted. 01187_ HN-YGU(R) destroyed. 01187_ Disposable Heat Sink destroyed. 01187_ Destroyed Disposable Heat Sink. 01189_ Wheel destroyed. 01189_ Destroyed Wheel. 01190_ Ion Engine destroyed. 01191_ Sub. Shrapnel Launcher shoots sparks and powers down. Map ----- +----------------------------------------------------+ | ?????????????????????????????????????????????? | | ?????????????????????????????????????????????? | | ?????????????????????????????????????????????? | | ?????????????????????????????????????????????? | | ?????????????????????????????????????????????? | | ?????????????????????????????????????????????? | | ?????????????????????????????????????????????? | | ?????????????????????????????????????????????? | | ?????????????????????????????????????????????? | | ?????????????????????????????????????????????? | | ????????????????????#????????????????????????? | | ???????????????????? ????????????????????????? | | ???????????????????? ????????????????????????? | | ???????????????????# ????????????????????????? | | ????????????????#### ????????????????????????? | | ????????????????# ????????????????????????? | | ???????????????? ?######?????????????????? | | ????????????????# # ##????????????????? | | ???????????????## "" ;;; #????????????????? | | ????????????????; #????????????????? | | ????????????????# #????????????????? | | ????????????????#; #?????????????????? | | ???????????????## #?????????????????? | | ???????????????# R #??????????????????? | | ???????????????## #???????????????????? | | ???????????????# @ #???????????????????? | | ???????????????# #???????????????????? | | ???????????????# #???????????????????? | | ???????????????##### #####????????????????? | | ??????????????????# # # #????????????????? | | ??????????????????### ##????????????????? | | ????????????????????## #????????????????? | | ?????????????????????## # #????????????????? | | ??????????????????????## ##????????????????? | | ???????????????????????## #?????????????????? | | ???????????????????????# #?????????????????? | | ???????????????????????# ##????????????????? | | ???????????????????????## ##???????????????? | | ?????????????????????### ""#???????????????? | | ?????????????????????# "# ##???????????????? | | ?????????????????????# "" "#????????????????? | | ?????????????????????# " "#????????????????? | | ?????????????????????# "" "#???????????????? | | ?????????????????????# "" ##???????????????? | | ?????????????????????### #????????????????? | | ?????????????????????####" "#???????????????? | | ??????????????????#### # ###???#####???????? | | ????????????????? "" " #### #???????? | | ????????????????? "" " " #??? | | ?????????????????? ### " # ### #?????????? | +----------------------------------------------------+ Best States ------------- Heat Dissipation 39 Coolant Potential 50 Energy Generation 10 Energy Capacity 250 Matter Stores 275 Matter Capacity 300 Sight Range 16 Terrain Scan Density 10 Evasion (%) 44 Recoil Reduction 1 Offensive Hacking 10 Item Schematics ----------------- None Robot Schematics ------------------ None Fabricated ------------ Nothing Alien Tech Used ----------------- None Achievements -------------- None Challenges ------------ None Game ------ Seed SigixEncryptedClaw Manual? 0 Play Time 00:13:58 Cumulative 25.3 hours Start 2024.04.07 @ 15:59:39 End 2024.04.07 @ 16:09:10 Sessions 1 Manual Loads 0 Difficulty Rogue Special Mode None Game No. 30 Rogue 24 Adventurer 6 Explorer 0 Win Type - Total 0 Types 0/0/0/0/0/0/0/0/0 Lore% 17 Gallery% 30 Achievement% 21 Wizard Run 0 Options --------- Layout 0 ASCII 0 Keyboard 1 Movement Numpad Keybinds 0 Fullscreen 1 Font 18/SmallcapsGlow Map View 76x50 Zoom Use 0% Tactical HUD 1 Map Filters NONE Filters NONE Steam 1 RUN: f05d8ff6-3d4b-4848-9d33-729c3e66daff